[Event "Reykjavik Open 2024"]
[Site "Reykjavik"]
[Date "2024.03.16"]
[Round "3.21"]
[White "Harish, Neeraj"]
[Black "Hermannsson, Sigurbjorn"]
[Result "1-0"]
[ECO "B90"]
[WhiteElo "2090"]
[BlackElo "1791"]
[Annotator "NA RC"]
[PlyCount "95"]
[EventDate "2024.03.12"]
[EventCountry "ISL"]
[SourceTitle "playchess.com"]
[Source "ChessBase"]
[SourceQuality "1"]
[TimeControl "40/5400+30:1800+30"]

1. e4 {[%emt 0:00:06]} c5 {[%emt 0:00:01]} 2. Nf3 {[%emt 0:00:33]} d6 {[%emt 0:00:06]} 3. d4 {[%emt 0:00:24]} cxd4 {[%emt 0:00:03]} 4. Nxd4 {[%emt 0:00:06]} Nf6 {[%emt 0:00:10]} 5. Nc3 {[%emt 0:00:05]} a6 {[%emt 0:00:07]} 6. Bd3 {[%emt 0:01:45]} e5 {[%emt 0:02:23]} 7. Nde2 {[%emt 0:00:10]} Be6 {[%emt 0:03:58]} 8. O-O {[%emt 0:04:30]} h5 {[%emt 0:04:22]} 9. f4 {[%emt 0:04:14]} Ng4 {[%emt 0:02:56]} 10. Qe1 {[%emt 0:04:58]} Be7 {[%emt 0:03:52]} 11. f5 {[%emt 0:05:56]} Bd7 {[%emt 0:04:44]} 12. Nd5 {[%emt 0:01:27]} Bc6 {[%emt 0:00:27]} 13. Nec3 {[%emt 0:01:42]} Nd7 {[%emt 0:00:47]} 14. a4 {[%emt 0:09:28]} Bxd5 {[%emt 0:15:03]} 15. Nxd5 {[%emt 0:00:12]} Ndf6 {[%emt 0:00:22]} 16. Nxe7 {[%emt 0:02:20]} Qb6+ {[%emt 0:00:45]} 17. Kh1 {[%emt 0:00:39]} Kxe7 {[%emt 0:00:02]} 18. Bg5 {[%emt 0:06:11]} Rh7 {[%emt 0:02:42]} 19. Ra3 {[%emt 0:00:56]} h4 {[%emt 0:01:38]} 20. Rb3 {[%emt 0:07:21]} Qc6 {[%emt 0:07:10]} 21. Qb4 {[%emt 0:09:09]} Rb8 {[%emt 0:03:59]} 22. Rc3 {[%emt 0:05:47]} Qd7 {[%emt 0:02:28]} 23. Be2 {[%emt 0:01:04]} Kf8 {[%emt 0:01:53]} 24. Bxf6 {[%emt 0:02:06]} Nxf6 {[%emt 0:00:19]} 25. Rd1 {[%emt 0:02:17]} Rd8 {[%emt 0:00:39]} 26. Rcd3 {[%emt 0:00:47]} Ne8 {[%emt 0:00:41]} 27. Rd5 {[%emt 0:01:48]} Rh6 {[%emt 0:00:14]} 28. c4 {[%emt 0:02:17]} Qe7 {[%emt 0:04:35]} 29. Qa3 {[%emt 0:03:08]} Kg8 {[%emt 0:05:40]} 30. c5 {[%emt 0:02:23]} Qg5 {[%emt 0:01:32]} 31. Qd3 {[%emt 0:08:38]} Nc7 {[%emt 0:02:17]} 32. Rxd6 {[%emt 0:00:35]} Rhxd6 {[%emt 0:00:02]} 33. cxd6 {[%emt 0:00:07]} Ne8 {[%emt 0:00:02]} 34. d7 {[%emt 0:00:45]} Nf6 {[%emt 0:00:02]} 35. Qc4 {[%emt 0:01:17]} Nxd7 {[%emt 0:02:51]} 36. Qc7 {[%emt 0:00:25]} Qe7 {[%emt 0:00:23]} 37. f6 {[%emt 0:00:27]} gxf6 {[%emt 0:05:28]} 38. Bg4 {[%emt 0:00:42]} f5 {[%emt 0:01:39]} 39. Bxf5 {[%emt 0:00:36]} Kh8 {[%emt 0:03:00]} 40. Rxd7 {[%emt 0:00:26]} Rxd7 {[%emt 0:00:03]} 41. Qxd7 {[%emt 0:30:07]} Qc5 {[%emt 0:30:11]} 42. Qd8+ {[%emt 0:00:28]} Kg7 {[%emt 0:00:11]} 43. Qg5+ {[%emt 0:00:08]} Kf8 {[%emt 0:00:33]} 44. Qh6+ {[%emt 0:00:06]} Ke8 {[%emt 0:00:53]} 45. Qh8+ {[%emt 0:00:11]} Ke7 {[%emt 0:03:05]} 46. Qxh4+ {[%emt 0:00:07]} Ke8 {[%emt 0:00:02]} 47. Qe1 {[%emt 0:01:35]} Qc2 {[%emt 0:00:10]} 48. h4 {[%emt 0:00:11]} 1-0

[Event "Reykjavik Open 2024"]
[Site "Reykjavik"]
[Date "2024.03.16"]
[Round "3.22"]
[White "Hu, Zhening"]
[Black "Manucharyan, Andriy"]
[Result "0-1"]
[ECO "E21"]
[WhiteElo "1776"]
[BlackElo "2080"]
[Annotator "RC"]
[PlyCount "124"]
[EventDate "2024.03.12"]
[EventCountry "ISL"]
[SourceTitle "playchess.com"]
[Source "ChessBase"]
[SourceQuality "1"]
[TimeControl "40/5400+30:1800+30"]

1. d4 {[%emt 0:03:15]} Nf6 {[%emt 0:00:16]} 2. c4 {[%emt 0:02:29]} e6 {[%emt 0:00:05]} 3. Nc3 {[%emt 0:00:09]} Bb4 {[%emt 0:00:14]} 4. Bd2 {[%emt 0:00:18]} b6 {[%emt 0:00:21]} 5. Nf3 {[%emt 0:04:03]} O-O {[%emt 0:01:33]} 6. e3 {[%emt 0:01:05]} Bb7 {[%emt 0:00:14]} 7. Bd3 {[%emt 0:00:25]} Bxc3 {[%emt 0:07:17]} 8. Bxc3 {[%emt 0:00:10]} Ne4 {[%emt 0:00:16]} 9. Bb4 {[%emt 0:16:23]} d6 {[%emt 0:00:39]} 10. O-O {[%emt 0:00:39]} f5 {[%emt 0:00:38]} 11. Qe2 {[%emt 0:03:42]} Rf6 {[%emt 0:02:30]} 12. Nd2 {[%emt 0:13:19]} Rh6 {[%emt 0:02:42]} 13. g3 {[%emt 0:08:11]} Nd7 {[%emt 0:09:57]} 14. f3 {[%emt 0:07:38]} Ng5 {[%emt 0:05:03]} 15. Bc3 {[%emt 0:08:49]} Nh3+ {[%emt 0:06:16]} 16. Kh1 {[%emt 0:07:42]} Qg5 {[%emt 0:03:37]} 17. e4 {[%emt 0:06:36]} f4 {[%emt 0:00:57]} 18. g4 {[%emt 0:01:49]} e5 {[%emt 0:02:15]} 19. d5 {[%emt 0:01:47]} Qg6 {[%emt 0:04:03]} 20. b4 {[%emt 0:01:07]} Ng5 {[%emt 0:03:09]} 21. Rf2 {[%emt 0:04:42]} Rh3 {[%emt 0:01:39]} 22. Rg2 {[%emt 0:00:55]} Rf8 {[%emt 0:01:37]} 23. Qf2 {[%emt 0:03:21]} Nf6 {[%emt 0:00:39]} 24. Re1 {[%emt 0:01:59]} Kf7 {[%emt 0:04:50]} 25. Reg1 {[%emt 0:00:21]} Rh8 {[%emt 0:00:23]} 26. c5 {[%emt 0:00:36]} Bxd5 {[%emt 0:00:55]} 27. Qe2 {[%emt 0:00:43]} Be6 {[%emt 0:00:37]} 28. Bc4 {[%emt 0:00:15]} Nd7 {[%emt 0:00:41]} 29. Rd1 {[%emt 0:00:34]} bxc5 {[%emt 0:01:30]} 30. Rf2 {[%emt 0:00:47]} h5 {[%emt 0:00:43]} 31. Bxe6+ {[%emt 0:00:09]} Nxe6 {[%emt 0:01:22]} 32. Rg1 {[%emt 0:00:23]} hxg4 {[%emt 0:02:32]} 33. Rxg4 {[%emt 0:00:01]} Qh5 {[%emt 0:00:20]} 34. bxc5 {[%emt 0:00:10]} Ndxc5 {[%emt 0:01:07]} 35. Nf1 {[%emt 0:01:04]} Rb8 {[%emt 0:00:43]} 36. Nd2 {[%emt 0:01:16]} Kf8 {[%emt 0:02:03]} 37. Rfg2 {[%emt 0:00:37]} g5 {[%emt 0:00:42]} 38. Qc4 {[%emt 0:00:22]} Qf7 {[%emt 0:03:36]} 39. Qd5 {[%emt 0:00:26]} Qe7 {[%emt 0:02:28]} 40. Rg1 {[%emt 0:00:19]} Nd7 {[%emt 0:01:56]} 41. Qa5 {[%emt 0:02:49]} Nb6 {[%emt 0:11:17]} 42. R4g2 {[%emt 0:03:58]} Qh7 {[%emt 0:00:00]} 43. Bb4 {[%emt 0:07:02]} c5 {[%emt 0:02:14]} 44. Bc3 {[%emt 0:01:17]} g4 {[%emt 0:01:09]} 45. fxg4 {[%emt 0:00:44]} Rb7 {[%emt 0:02:23]} 46. Re2 {[%emt 0:09:37]} Rg7 {[%emt 0:04:45]} 47. Nf1 {[%emt 0:02:38]} Ng5 {[%emt 0:00:00]} 48. Bxe5 {[%emt 0:01:06]} dxe5 {[%emt 0:00:26]} 49. Qxc5+ {[%emt 0:00:07]} Re7 {[%emt 0:00:40]} 50. Qc6 {[%emt 0:00:13]} Rh6 {[%emt 0:02:42]} 51. Qc3 {[%emt 0:01:42]} Nxe4 {[%emt 0:01:29]} 52. Qb4 {[%emt 0:01:13]} Nd6 {[%emt 0:01:25]} 53. g5 {[%emt 0:00:40]} Rhe6 {[%emt 0:01:29]} 54. Nd2 {[%emt 0:01:08]} Qd3 {[%emt 0:00:53]} 55. Rf2 {[%emt 0:00:23]} Qd5+ {[%emt 0:00:30]} 56. Rgg2 {[%emt 0:00:03]} Nbc4 {[%emt 0:01:23]} 57. Qb3 {[%emt 0:01:24]} Kg7 {[%emt 0:02:51]} 58. Nxc4 {[%emt 0:01:20]} Qxc4 {[%emt 0:00:51]} 59. Qf3 {[%emt 0:01:16]} Nf5 {[%emt 0:01:08]} 60. Rc2 {[%emt 0:00:15]} Qa6 {[%emt 0:02:56]} 61. Qh5 {[%emt 0:01:21]} Ne3 {[%emt 0:03:21]} 62. g6 {[%emt 0:00:12]} Rxg6 {[%emt 0:00:23]} 0-1

[Event "Reykjavik Open 2024"]
[Site "Reykjavik"]
[Date "2024.03.16"]
[Round "3.23"]
[White "Osorio Ferrer, Roberto Eduardo"]
[Black "Beisteiner, Joachim"]
[Result "0-1"]
[ECO "C68"]
[WhiteElo "1776"]
[BlackElo "2079"]
[Annotator "RC"]
[PlyCount "138"]
[EventDate "2024.03.12"]
[EventCountry "ISL"]
[SourceTitle "playchess.com"]
[Source "ChessBase"]
[SourceQuality "1"]
[TimeControl "40/5400+30:1800+30"]

1. e4 {[%emt 0:00:05]} e5 {[%emt 0:00:18]} 2. Nf3 {[%emt 0:00:29]} Nc6 {[%emt 0:00:14]} 3. Bb5 {[%emt 0:04:38]} a6 {[%emt 0:00:13]} 4. Bxc6 {[%emt 0:00:05]} dxc6 {[%emt 0:00:09]} 5. Nc3 {[%emt 0:00:15]} f6 {[%emt 0:01:18]} 6. d4 {[%emt 0:00:17]} exd4 {[%emt 0:00:45]} 7. Qxd4 {[%emt 0:00:10]} Qxd4 {[%emt 0:00:43]} 8. Nxd4 {[%emt 0:00:11]} Bd7 {[%emt 0:01:06]} 9. Be3 {[%emt 0:00:13]} O-O-O {[%emt 0:00:56]} 10. O-O-O {[%emt 0:01:46]} Ne7 {[%emt 0:09:42]} 11. Nb3 {[%emt 0:03:08]} b6 {[%emt 0:00:48]} 12. Nd4 {[%emt 0:09:22]} Ng6 {[%emt 0:05:34]} 13. Nf5 {[%emt 0:08:00]} Ne5 {[%emt 0:01:19]} 14. f3 {[%emt 0:03:08]} h5 {[%emt 0:01:43]} 15. h4 {[%emt 0:00:55]} g6 {[%emt 0:02:58]} 16. Nd4 {[%emt 0:03:50]} Bd6 {[%emt 0:04:51]} 17. b3 {[%emt 0:02:10]} Kb7 {[%emt 0:11:40]} 18. Kb2 {[%emt 0:00:54]} Rhf8 {[%emt 0:03:16]} 19. Rd2 {[%emt 0:00:54]} Bc8 {[%emt 0:03:51]} 20. Rhd1 {[%emt 0:01:15]} Be7 {[%emt 0:07:46]} 21. Nde2 {[%emt 0:04:43]} Rxd2 {[%emt 0:01:48]} 22. Rxd2 {[%emt 0:00:15]} Be6 {[%emt 0:01:07]} 23. Nd4 {[%emt 0:06:15]} Bf7 {[%emt 0:01:18]} 24. Bf4 {[%emt 0:01:47]} Bd6 {[%emt 0:01:48]} 25. Be3 {[%emt 0:06:15]} Rg8 {[%emt 0:01:14]} 26. Na4 {[%emt 0:08:19]} Bb4 {[%emt 0:01:10]} 27. Nc3 {[%emt 0:00:50]} Re8 {[%emt 0:01:28]} 28. a3 {[%emt 0:02:58]} Be7 {[%emt 0:01:05]} 29. Bf4 {[%emt 0:00:37]} Bd6 {[%emt 0:02:17]} 30. Bh6 {[%emt 0:05:12]} a5 {[%emt 0:01:57]} 31. a4 {[%emt 0:04:42]} Rg8 {[%emt 0:01:17]} 32. Be3 {[%emt 0:00:26]} Bc5 {[%emt 0:03:27]} 33. Rd1 {[%emt 0:08:37]} Bb4 {[%emt 0:00:28]} 34. Nde2 {[%emt 0:04:49]} Kc8 {[%emt 0:02:25]} 35. Na2 {[%emt 0:03:33]} Be7 {[%emt 0:01:17]} 36. Bf4 {[%emt 0:01:18]} Bd6 {[%emt 0:00:50]} 37. Be3 {[%emt 0:00:46]} Rd8 {[%emt 0:02:39]} 38. Nac3 {[%emt 0:00:58]} Bb4 {[%emt 0:02:28]} 39. Rxd8+ {[%emt 0:00:35]} Kxd8 {[%emt 0:00:07]} 40. Nd4 {[%emt 0:00:42]} Kd7 {[%emt 0:01:10]} 41. Bf4 {[%emt 0:32:33]} Bd6 {[%emt 0:30:45]} 42. Bh6 {[%emt 0:00:54]} Bc5 {[%emt 0:01:15]} 43. Nde2 {[%emt 0:01:13]} Ke7 {[%emt 0:02:43]} 44. Ka2 {[%emt 0:00:00]} Be8 {[%emt 0:00:00]} 45. Bf4 {[%emt 0:00:00]} Bd6 {[%emt 0:00:00]} 46. Bc1 {[%emt 0:00:00]} b5 {[%emt 0:00:00]} 47. axb5 {[%emt 0:00:00]} cxb5 {[%emt 0:00:00]} 48. Nd5+ {[%emt 0:00:00]} Kf7 {[%emt 0:00:00]} 49. Bb2 {[%emt 0:00:00]} c6 {[%emt 0:00:00]} 50. Nxf6 {[%emt 0:00:00]} Kxf6 {[%emt 0:00:00]} 51. f4 {[%emt 0:00:00]} Ke6 {[%emt 0:00:00]} 52. Nd4+ {[%emt 0:00:00]} Kd7 {[%emt 0:00:00]} 53. fxe5 {[%emt 0:00:00]} Bxe5 {[%emt 0:00:00]} 54. Nf3 {[%emt 0:00:00]} Bc7 {[%emt 0:00:00]} 55. Bd4 {[%emt 0:00:00]} Bd8 {[%emt 0:00:00]} 56. Kb2 {[%emt 0:00:00]} Kd6 {[%emt 0:00:00]} 57. Be5+ {[%emt 0:00:00]} Kd7 {[%emt 0:00:00]} 58. Bd4 {[%emt 0:00:00]} Ke6 {[%emt 0:00:00]} 59. Ng5+ {[%emt 0:00:00]} Kd6 {[%emt 0:00:00]} 60. Nf3 {[%emt 0:00:00]} c5 {[%emt 0:00:00]} 61. Be5+ {[%emt 0:00:00]} Ke6 {[%emt 0:00:00]} 62. Bg7 {[%emt 0:01:20]} Bc6 {[%emt 0:03:15]} 63. Ng5+ {[%emt 0:01:19]} Ke7 {[%emt 0:01:37]} 64. c3 {[%emt 0:01:37]} Bc7 {[%emt 0:01:49]} 65. Bf8+ {[%emt 0:06:07]} Kxf8 {[%emt 0:01:16]} 66. Ne6+ {[%emt 0:00:00]} Ke7 {[%emt 0:00:08]} 67. Nxc7 {[%emt 0:00:18]} Kd6 {[%emt 0:00:11]} 68. Na6 {[%emt 0:00:31]} Bxe4 {[%emt 0:00:18]} 69. g3 {[%emt 0:00:53]} Bb7 {[%emt 0:00:09]} 0-1

[Event "Reykjavik Open 2024"]
[Site "Reykjavik"]
[Date "2024.03.16"]
[Round "3.24"]
[White "Barthel, Ansgar"]
[Black "Winnubst, Paul"]
[Result "1-0"]
[ECO "B33"]
[WhiteElo "2073"]
[BlackElo "1681"]
[Annotator "RC"]
[PlyCount "113"]
[EventDate "2024.03.12"]
[EventCountry "ISL"]
[SourceTitle "playchess.com"]
[Source "ChessBase"]
[SourceQuality "1"]
[TimeControl "40/5400+30:1800+30"]

1. e4 {[%emt 0:00:03]} c5 {[%emt 0:00:10]} 2. Nf3 {[%emt 0:00:07]} e6 {[%emt 0:00:05]} 3. d4 {[%emt 0:00:05]} cxd4 {[%emt 0:00:05]} 4. Nxd4 {[%emt 0:00:04]} Nf6 {[%emt 0:00:04]} 5. Nc3 {[%emt 0:00:06]} Nc6 {[%emt 0:00:03]} 6. Ndb5 {[%emt 0:00:06]} d6 {[%emt 0:00:05]} 7. Bf4 {[%emt 0:00:09]} e5 {[%emt 0:00:02]} 8. Bg5 {[%emt 0:00:06]} a6 {[%emt 0:00:02]} 9. Na3 {[%emt 0:00:05]} b5 {[%emt 0:00:02]} 10. Bxf6 {[%emt 0:00:05]} gxf6 {[%emt 0:00:04]} 11. Nd5 {[%emt 0:00:06]} Be6 {[%emt 0:02:45]} 12. c3 {[%emt 0:00:19]} Bg7 {[%emt 0:03:55]} 13. Nc2 {[%emt 0:00:09]} O-O {[%emt 0:00:09]} 14. Nce3 {[%emt 0:05:49]} Rc8 {[%emt 0:11:29]} 15. a4 {[%emt 0:01:49]} Rb8 {[%emt 0:03:59]} 16. axb5 {[%emt 0:00:21]} axb5 {[%emt 0:00:10]} 17. Ra6 {[%emt 0:03:08]} Bxd5 {[%emt 0:14:46]} 18. Nxd5 {[%emt 0:19:36]} Ne7 {[%emt 0:00:00]} 19. Nxf6+ {[%emt 0:09:44]} Bxf6 {[%emt 0:00:00]} 20. Rxd6 {[%emt 0:00:05]} Qa5 {[%emt 0:00:00]} 21. Rxf6 {[%emt 0:00:12]} b4 {[%emt 0:02:36]} 22. Ra6 {[%emt 0:02:59]} Qc5 {[%emt 0:01:20]} 23. Qd6 {[%emt 0:02:47]} Qxd6 {[%emt 0:09:39]} 24. Rxd6 {[%emt 0:00:07]} Rfc8 {[%emt 0:05:36]} 25. Ba6 {[%emt 0:25:37]} Rc7 {[%emt 0:05:10]} 26. O-O {[%emt 0:06:24]} bxc3 {[%emt 0:00:45]} 27. bxc3 {[%emt 0:00:06]} Rxc3 {[%emt 0:01:52]} 28. Rfd1 {[%emt 0:01:50]} Rb2 {[%emt 0:04:03]} 29. R6d2 {[%emt 0:08:34]} Rb4 {[%emt 0:05:54]} 30. f3 {[%emt 0:01:05]} Ng6 {[%emt 0:01:06]} 31. Bf1 {[%emt 0:02:25]} Kg7 {[%emt 0:02:29]} 32. Ra1 {[%emt 0:00:31]} Rcb3 {[%emt 0:04:35]} 33. Ra7 {[%emt 0:02:11]} Rb7 {[%emt 0:00:44]} 34. Rd7 {[%emt 0:00:20]} Rxd7 {[%emt 0:00:43]} 35. Rxd7 {[%emt 0:00:06]} Rb1 {[%emt 0:00:31]} 36. g3 {[%emt 0:00:33]} h6 {[%emt 0:05:10]} 37. h4 {[%emt 0:02:56]} Nf8 {[%emt 0:02:41]} 38. Rd5 {[%emt 0:00:52]} f6 {[%emt 0:01:48]} 39. Rd6 {[%emt 0:03:46]} Rc1 {[%emt 0:02:35]} 40. Kf2 {[%emt 0:01:03]} Rc2+ {[%emt 0:01:50]} 41. Ke3 {[%emt 0:31:36]} Rc1 {[%emt 0:30:11]} 42. Be2 {[%emt 0:02:58]} Rg1 {[%emt 0:01:01]} 43. Kf2 {[%emt 0:00:00]} Rc1 {[%emt 0:00:30]} 44. Ra6 {[%emt 0:00:30]} Rc7 {[%emt 0:02:08]} 45. Bb5 {[%emt 0:00:00]} Ng6 {[%emt 0:00:00]} 46. Rd6 {[%emt 0:00:00]} Nf8 {[%emt 0:00:00]} 47. Be8 {[%emt 0:00:00]} Rc2+ {[%emt 0:00:00]} 48. Kf1 {[%emt 0:00:00]} Rc3 {[%emt 0:00:00]} 49. Kg2 {[%emt 0:00:00]} Rc2+ {[%emt 0:00:00]} 50. Kh3 {[%emt 0:00:00]} Rc3 {[%emt 0:00:00]} 51. Kg4 {[%emt 0:00:00]} Re3 {[%emt 0:00:00]} 52. Ra6 {[%emt 0:00:00]} Re1 {[%emt 0:00:00]} 53. Ra7+ {[%emt 0:00:00]} Kg8 {[%emt 0:00:00]} 54. Bf7+ {[%emt 0:00:00]} Kh8 {[%emt 0:00:00]} 55. Kh5 {[%emt 0:00:00]} Rg1 {[%emt 0:00:00]} 56. Kxh6 {[%emt 0:00:00]} Rxg3 {[%emt 0:00:00]} 57. Ra8 {[%emt 0:00:00]} 1-0

[Event "Reykjavik Open 2024"]
[Site "Reykjavik"]
[Date "2024.03.16"]
[Round "3.25"]
[White "Ptacnikova, Lenka"]
[Black "Atharva M Parulekar"]
[Result "1-0"]
[ECO "B13"]
[WhiteElo "2067"]
[BlackElo "1580"]
[Annotator "NA RC"]
[PlyCount "71"]
[EventDate "2024.03.12"]
[EventCountry "ISL"]
[SourceTitle "playchess.com"]
[Source "ChessBase"]
[SourceQuality "1"]
[TimeControl "40/5400+30:1800+30"]

1. d4 {[%emt 0:00:07]} d5 {[%emt 0:00:15]} 2. Nc3 {[%emt 0:00:08]} Nf6 {[%emt 0:00:14]} 3. Bf4 {[%emt 0:00:05]} c5 {[%emt 0:05:32]} 4. e3 {[%emt 0:00:23]} cxd4 {[%emt 0:02:00]} 5. exd4 {[%emt 0:00:05]} a6 {[%emt 0:01:10]} 6. Nf3 {[%emt 0:12:45]} Bg4 {[%emt 0:04:53]} 7. h3 {[%emt 0:00:16]} Bh5 {[%emt 0:00:06]} 8. g4 {[%emt 0:00:30]} Bg6 {[%emt 0:00:16]} 9. Ne5 {[%emt 0:00:20]} e6 {[%emt 0:21:27]} 10. h4 {[%emt 0:03:42]} h6 {[%emt 0:03:48]} 11. Nxg6 {[%emt 0:02:21]} fxg6 {[%emt 0:00:02]} 12. Qd3 {[%emt 0:14:45]} Kf7 {[%emt 0:07:50]} 13. O-O-O {[%emt 0:09:39]} Bb4 {[%emt 0:06:34]} 14. Kb1 {[%emt 0:05:41]} Nbd7 {[%emt 0:01:51]} 15. f3 {[%emt 0:16:19]} Rc8 {[%emt 0:01:53]} 16. Ne2 {[%emt 0:00:12]} Nh7 {[%emt 0:06:59]} 17. h5 {[%emt 0:13:06]} Ndf8 {[%emt 0:11:20]} 18. Be5 {[%emt 0:01:59]} g5 {[%emt 0:05:19]} 19. f4 {[%emt 0:01:17]} Be7 {[%emt 0:02:47]} 20. Bg2 {[%emt 0:00:58]} Bf6 {[%emt 0:01:55]} 21. f5 {[%emt 0:00:26]} Qd7 {[%emt 0:01:27]} 22. Nc3 {[%emt 0:01:16]} Rd8 {[%emt 0:03:21]} 23. Rhf1 {[%emt 0:00:43]} Kg8 {[%emt 0:01:51]} 24. Qf3 {[%emt 0:01:50]} Qc6 {[%emt 0:03:41]} 25. fxe6 {[%emt 0:01:53]} Nxe6 {[%emt 0:00:11]} 26. Nxd5 {[%emt 0:00:38]} Nf4 {[%emt 0:00:55]} 27. Bxf4 {[%emt 0:05:38]} gxf4 {[%emt 0:00:49]} 28. Ne7+ {[%emt 0:00:22]} Bxe7 {[%emt 0:00:55]} 29. Qb3+ {[%emt 0:00:05]} Kf8 {[%emt 0:00:11]} 30. Bxc6 {[%emt 0:00:04]} bxc6 {[%emt 0:00:04]} 31. Rxf4+ {[%emt 0:00:28]} Nf6 {[%emt 0:00:34]} 32. c3 {[%emt 0:00:21]} Bd6 {[%emt 0:00:18]} 33. Rf5 {[%emt 0:00:11]} Rb8 {[%emt 0:01:08]} 34. Qe6 {[%emt 0:00:08]} Be7 {[%emt 0:00:21]} 35. Re1 {[%emt 0:01:10]} Re8 {[%emt 0:00:11]} 36. Kc2 {[%emt 0:00:40]} 1-0

[Event "Reykjavik Open 2024"]
[Site "Reykjavik"]
[Date "2024.03.16"]
[Round "3.26"]
[White "Ivanchuk, Vasyl"]
[Black "Stelmaszyk, Nico"]
[Result "1-0"]
[ECO "D10"]
[WhiteElo "2625"]
[BlackElo "2347"]
[Annotator "TA"]
[PlyCount "157"]
[EventDate "2024.03.12"]
[EventCountry "ISL"]
[SourceTitle "playchess.com"]
[Source "ChessBase"]
[SourceQuality "1"]
[TimeControl "40/5400+30:1800+30"]

{[%evp 58,157,72,68,69,77,70,80,84,49,37,8,8,8,8,3,28,15,23,23,53,53,53,53,58,53,53,53,53,53,53,53,60,60,96,97,106,87,103,91,93,93,137,87,87,72,87,83,87,87,87,87,87,87,87,87,87,87,220,205,952,952,585,1081,1298,34,1348,1343,1253,930,29953,29953,29954,29955,29958,29951,4352,0,29960,29963,29961,1212,29961,29953,29966,29968,29967,29968,29968,29971,29968,29969,29968,29971,29969,29970,29968,29967,29971,29972,29974,29975]} 1. d4 {[%emt 0:00:02]} d5 {[%emt 0:00:06]} 2. c4 {[%emt 0:00:03]} dxc4 {[%emt 0:00:06]} 3. e4 {[%emt 0:00:13]} b5 {[%emt 0:00:09]} 4. a4 {[%emt 0:00:09]} c6 {[%emt 0:00:05]} 5. Nc3 {[%emt 0:00:03]} b4 {[%emt 0:02:10]} 6. Na2 {[%emt 0:00:06]} e6 {[%emt 0:03:13] D10: Damengambit (Slawische Verteidigung).} 7. Bxc4 {[%emt 0:00:13]} Nf6 {[%emt 0:03:05]} 8. f3 {[%emt 0:00:47]} c5 {[%emt 0:04:30]} 9. Ne2 {[%emt 0:04:06]} Be7 $146 {[%emt 0:09:28]} ({Predecessor:} 9... Ba6 10. Bxa6 Nxa6 11. Be3 cxd4 12. Nxd4 Bc5 13. Qe2 O-O 14. Qxa6 Bxd4 15. Rd1 Qb6 16. Qxb6 Bxb6 17. Ke2 Rfb8 18. Bf4 Rc8 19. Nxb4 Rc4 20. Bd2 a5 21. Nd3 {1-0 Gunkel,W (2133)-Sanchez Carol,J (2019) ESP-GER email 2008 [26]}) 10. Be3 {[%emt 0:00:56]} Ba6 {[%emt 0:03:55]} 11. Bb5+ {[%emt 0:08:50]} Bxb5 {[%emt 0:02:51]} 12. axb5 {[%emt 0:03:55]} Qb6 {[%emt 0:01:45]} 13. dxc5 {[%emt 0:09:34]} Qxb5 {[%emt 0:00:23]} 14. Nd4 {[%emt 0:00:14]} Qa5 {[%emt 0:04:39]} 15. Nc3 {[%emt 0:09:02]} Qxc5 {[%emt 0:01:07]} 16. Ncb5 {[%emt 0:18:22]} Qb6 {[%emt 0:06:20]} 17. Rc1 {[%emt 0:14:48]} O-O {[%emt 0:00:38]} 18. Nc7 {[%emt 0:00:28]} Nbd7 {[%emt 0:00:27]} 19. Nxa8 Rxa8 {[%emt 0:00:08]} 20. Rc6 {[%emt 0:12:33]} Qb7 {[%emt 0:02:50]} 21. Rc2 {[%emt 0:00:09]} Bc5 {[%emt 0:10:52]} 22. Qe2 {[%emt 0:07:00]} Qb6 {[%emt 0:00:00]} 23. Rd2 {[%emt 0:00:06]} a5 {[%emt 0:00:00]} 24. Kf2 {[%emt 0:00:10]} a4 {[%emt 0:00:00]} 25. Rc1 {[%emt 0:00:55]} h6 {[%emt 0:01:29]} 26. Nc2 {[%emt 0:01:20]} a3 {[%emt 0:00:33]} 27. bxa3 {[%emt 0:00:09]} bxa3 {[%emt 0:00:48]} 28. Ne1 {[%emt 0:00:34]} a2 {[%emt 0:02:02]} 29. Ra1 {[%emt 0:00:01]} Ra3 {[%emt 0:07:33]} 30. Bxc5 $1 {[%emt 0:00:42]} Qxc5+ {[%emt 0:00:05]} 31. Kf1 {[%emt 0:00:09]} Qe5 {[%emt 0:01:22]} (31... Re3 $6 32. Qf2 $18) 32. Rdxa2 {[%emt 0:01:47]} (32. Raxa2 Rxa2 33. Rxa2 Qxh2 $11) 32... Rxa2 {[%emt 0:00:19]} 33. Rxa2 {[%emt 0:00:01]} Qxh2 {[%emt 0:00:10]} 34. Nd3 {[%emt 0:00:15]} Ne5 {[%emt 0:08:46]} 35. Nxe5 {[%emt 0:00:38]} Qxe5 {[%emt 0:00:59]} 36. Qb2 {[%emt 0:05:18]} Qf4 {[%emt 0:06:40]} (36... Qh2 {wäre vielleicht verwirrender.} 37. Qb7 Nh5 38. Ra7 Qf4) 37. Qd2 {[%emt 0:01:15]} Qc7 {[%emt 0:01:38]} 38. Kg1 {[%emt 0:00:32]} Qc5+ {[%emt 0:00:46]} 39. Qf2 {[%emt 0:00:29]} Qc1+ {[%emt 0:00:44]} 40. Kh2 {[%emt 0:00:03]} g6 {[%emt 0:09:12]} 41. g3 {[%emt 0:32:48]} Kg7 {[%emt 0:33:48]} 42. Kg2 {[%emt 0:00:00]} Qg5 {[%emt 0:00:00]} 43. Qd2 {[%emt 0:00:00]} Qe5 {[%emt 0:00:00]} 44. Ra5 {[%emt 0:00:00]} Qc7 {[%emt 0:00:00]} 45. Rb5 {[%emt 0:00:00]} Nh5 {[%emt 0:00:00]} 46. e5 {[%emt 0:00:00]} g5 {[%emt 0:00:00]} 47. Qd3 {[%emt 0:00:00]} Qc6 {[%emt 0:00:00]} 48. Kh2 {[%emt 0:00:00]} Qa6 {[%emt 0:00:00]} 49. Qe2 {[%emt 0:00:00]} Qa3 {[%emt 0:00:00]} 50. Qf2 {[%emt 0:00:00]} (50. Rb1 $142 $1) 50... Qd3 $16 {[%emt 0:00:00]} 51. Rb4 {[%emt 0:00:00]} Kg6 {[%emt 0:00:00]} 52. Rb2 {[%emt 0:00:00]} Ng7 {[%emt 0:00:00]} 53. g4 {[%emt 0:00:00]} h5 {[%emt 0:00:00]} 54. Qc2 {[%emt 0:00:00]} (54. Rc2 {hält die Spannung aufrecht.} hxg4 55. fxg4 f5 56. exf6 Qd6+ 57. Kh3) 54... Qxc2+ {[%emt 0:00:00]} 55. Rxc2 {[%emt 0:00:00]} f6 {[%emt 0:00:00]} 56. exf6 {[%emt 0:00:00]} Kxf6 {[%emt 0:00:00]} 57. Kg3 {[%emt 0:00:00]} h4+ {[%emt 0:00:00]} (57... hxg4 $16 {war nötig.} 58. Kxg4 Nf5) 58. Kf2 $1 $18 {[%emt 0:00:00]} Ne8 $2 {[%emt 0:00:00]} (58... e5 59. Ke3 Ne6) 59. Rc6 $1 $18 {[%emt 0:00:00]} Ke5 {[%emt 0:02:00]} 60. Rc5+ {[%emt 0:00:00]} Kf4 {[%emt 0:00:26]} 61. Rc4+ {[%emt 0:00:00]} Ke5 {[%emt 0:00:06] [#]} 62. f4+ $1 {[%emt 0:00:00]} gxf4 {[%emt 0:00:36]} 63. Kf3 {[%emt 0:00:00]} Kf6 {[%emt 0:03:28]} 64. Rxf4+ {[%emt 0:00:00]} (64. Kxf4 e5+ 65. Kf3 Ng7 $18) 64... Kg5 {[%emt 0:00:09] [#]} 65. Re4 $1 {[%emt 0:03:35]} Kf6 {[%emt 0:01:01]} 66. Kg2 {[%emt 0:06:03]} Kg5 {[%emt 0:01:05]} 67. Kf3 {[%emt 0:00:25]} (67. Rxe6 Nf6 $11) (67. Ra4 $18 e5 68. Kh3) 67... Kf6 $1 {[%emt 0:00:02]} 68. Kf4 {[%emt 0:00:05]} Ng7 {[%emt 0:02:40]} 69. Re5 {[%emt 0:01:04]} (69. g5+ $142 Kf7 70. Kf3 Kg6 71. Kg4 (71. Rxh4 Kxg5 72. Rh8 Nf5 $14) 71... h3 72. Re2 (72. Kxh3 Kxg5 73. Rg4+ Kf6 $11) 72... e5 73. Rf2 (73. Rxe5 h2 $11) 73... Nh5 74. Rd2 (74. Kxh3 Kxg5 75. Rg2+ Kf5 $11)) 69... Kg6 {[%emt 0:00:39]} 70. Ra5 {[%emt 0:01:42]} Kh6 {[%emt 0:00:28]} 71. Kf3 {[%emt 0:01:13]} Kg6 {[%emt 0:03:37]} 72. Kg2 {[%emt 0:00:07]} Kf6 {[%emt 0:00:29]} 73. Kh3 {[%emt 0:00:07]} e5 {[%emt 0:00:07]} 74. Kxh4 {[%emt 0:00:07]} Ne6 {[%emt 0:00:06]} 75. Ra6 {[%emt 0:01:42]} e4 {[%emt 0:00:08]} 76. Kg3 {[%emt 0:00:49]} Ke5 {[%emt 0:00:06]} 77. Ra5+ {[%emt 0:00:05]} Kd4 {[%emt 0:00:12]} 78. g5 {[%emt 0:01:42]} e3 {[%emt 0:00:07]} 79. g6 {[%emt 0:00:02]} 1-0